bitfinex-derivatives/quotes_ETHF0:USTF0_20250430
["timestamp","ask_amount","ask_price","bid_price","bid_amount"]
[1746030427086,6.52658,1760.5,1760.4,2.81964]
[1746030428393,4.90598,1760.5,1760.4,2.81964]
[1746030429285,6.61908,1760.5,1760.4,2.81964]
[1746030429494,5.4831,1760.5,1760.4,2.81964]
[1746030429793,6.61908,1760.5,1760.4,2.81964]
[1746030430688,5.4831,1760.5,1760.4,2.81964]
[1746030430888,6.61908,1760.5,1760.4,2.81964]
[1746030431089,4.90598,1760.5,1760.4,2.81964]
[1746030432286,3.77,1760.5,1760.4,2.81964]
[1746030432492,4.90598,1760.5,1760.4,2.81964]
[1746030432692,6.62478,1760.5,1760.4,2.81964]
[1746030433797,3.77,1760.5,1760.4,2.81964]
[1746030434298,4.90598,1760.5,1760.4,3.62554]
[1746030434492,3.77,1760.5,1760.4,3.62554]
[1746030434693,4.90598,1760.5,1760.4,3.62554]
[1746030435291,1.13598,1760.5,1760.4,3.62554]
[1746030435488,4.45995,1760.6,1760.5,1.13598]
[1746030435691,4.45995,1760.6,1760.5,2.73338]
[1746030436299,1.13598,1760.5,1760.4,1.13601]
[1746030436503,2.80468,1760.5,1760.4,1.13601]
[1746030437901,2.80468,1760.5,1760.4,2.73341]
[1746030438200,2.80468,1760.5,1760.4,1.13601]
[1746030439191,1.13604,1760.4,1760.3,2.88515]
[1746030440901,1.13611,1760.3,1760.2,3.2078]
[1746030441092,1.13617,1760.2,1760.1,5.83]
[1746030441298,2.83367,1760.2,1760.1,5.83]
[1746030441590,2.83367,1760.2,1760.1,6.96624]
[1746030441795,1.13617,1760.2,1760.1,6.96624]
[1746030441997,4.86412,1760.3,1760.2,1.13617]
[1746030442195,4.86411,1760.3,1760.2,1.13617]
[1746030442396,3.728,1760.3,1760.2,1.13617]
[1746030442597,4.86411,1760.3,1760.2,2.79377]
[1746030445103,6.49701,1760.3,1760.2,2.79377]
[1746030447299,1.13617,1760.2,1760.1,6.96621]
[1746030447600,2.77397,1760.2,1760.1,6.96621]
[1746030448200,2.77397,1760.2,1760.1,7.0798399]
[1746030448594,1.6378,1760.2,1760.1,7.0798399]
[1746030448796,5.69255,1760.3,1760.2,1.13617]
[1746030449295,1.13617,1760.2,1760.1,7.0798399]
[1746030449602,2.77397,1760.2,1760.1,7.0798399]
[1746030449902,2.77397,1760.2,1760.1,1.2498399]
[1746030450805,2.77397,1760.2,1760.1,0.1136299]
[1746030451299,6.60197,1760.2,1760.1,0.1136299]
[1746030452301,11.60197,1760.2,1760.1,0.1136299]
[1746030452497,14.80977,1760.2,1760.1,0.1136299]
[1746030456204,9.80977,1760.2,1760.1,0.1136299]
[1746030464609,3.828,1760.2,1760.1,1.2498699]
[1746030464913,3.828,1760.2,1760.1,4.4576699]
[1746030465106,3.729,1760.4,1760.3,1.13611]
[1746030465306,3.729,1760.4,1760.3,4.34391]
[1746030465613,4.86504,1760.4,1760.3,4.34391]
[1746030465814,4.86504,1760.4,1760.3,5.16511]
[1746030468510,4.86504,1760.4,1760.3,1.95731]
[1746030469020,3.729,1760.4,1760.3,1.95731]
[1746030469513,4.86504,1760.4,1760.3,1.95731]
[1746030472119,3.729,1760.4,1760.3,1.95731]
[1746030472320,15.35832488,1761.1,1760.3,9.029]
[1746030472513,3.718,1761.0,1760.9,1.13572]
[1746030472712,9.31153488,1761.1,1761.0,2.78916]
[1746030472913,9.31153488,1761.1,1761.0,3.65426]
[1746030473111,9.31153488,1761.1,1761.0,44.45426]
[1746030473418,10.44712488,1761.1,1761.0,44.45426]
[1746030474717,10.44712488,1761.1,1761.0,3.65426]
[1746030476511,9.31153488,1761.1,1761.0,3.65426]
[1746030476711,10.44712488,1761.1,1761.0,3.65426]
[1746030477213,9.31153488,1761.1,1761.0,3.65426]
[1746030477817,9.31153488,1761.1,1761.0,6.86206]
[1746030478018,1.13554,1761.2,1761.1,1.13559]
[1746030478216,4.85346,1761.3,1761.2,1.13553]
[1746030479120,1.7231,1761.5,1761.2,1.13553]
[1746030479319,6.9238,1762.0,1761.4,6.0463]
[1746030479623,1.13519,1761.8,1761.7,1.13518]
[1746030479821,10.44663488,1761.9,1761.8,1.13514]
[1746030480010,10.44663488,1761.9,1761.8,1.95764]
[1746030480218,9.31153488,1761.9,1761.8,3.66994]
[1746030480412,10.44661488,1761.9,1761.8,2.5348]
[1746030480915,12.11251488,1761.9,1761.8,2.5348]
[1746030481724,1.13514,1761.8,1761.7,0.8342]
[1746030481917,1.13514,1761.8,1761.6,3.2078]
[1746030481918,1.13521,1761.7,1761.6,3.2078]
[1746030482120,1.13527,1761.6,1761.5,2.5764]
[1746030482308,2.80117,1761.6,1761.5,2.5764]
[1746030482514,8.67926,1761.7,1761.5,2.5764]
[1746030482711,7.544,1761.7,1761.6,2.88917]
[1746030483110,4.85121,1761.7,1761.6,2.88917]
[1746030484022,3.716,1761.7,1761.6,2.88917]
[1746030484218,8.67921,1761.7,1761.6,2.88917]
[1746030484418,7.544,1761.7,1761.6,2.88917]
[1746030484817,1.87758957,1761.7,1761.6,16.92697]
[1746030485124,1.13504,1762.0,1761.9,1.13508]
[1746030485711,1.13504,1762.0,1761.9,2.82008]
[1746030486323,4.96304,1762.0,1761.9,2.82008]
[1746030486921,6.65544,1762.0,1761.9,2.82008]
[1746030487123,6.65544,1762.0,1761.9,1.685]
[1746030487819,1.13521,1761.7,1761.6,10.17307]
[1746030488023,1.13521,1761.7,1761.6,4.34307]
[1746030488224,4.96321,1761.7,1761.6,1.13527]
[1746030488525,4.96321,1761.7,1761.6,2.80067]
[1746030488925,3.828,1761.7,1761.6,2.80067]
[1746030489126,3.715,1761.9,1761.8,1.13514]
[1746030489326,4.85008,1761.9,1761.8,1.13514]
[1746030489723,4.85008,1761.9,1761.8,2.83434]
[1746030489922,4.85008,1761.9,1761.7,1.6654]
[1746030490128,8.67808,1761.9,1761.8,1.13514]
[1746030490325,10.34658,1761.9,1761.8,1.13514]
[1746030490729,1.13514,1761.8,1761.7,1.96315]
[1746030491023,2.80364,1761.8,1761.7,1.96315]
[1746030491326,6.63164,1761.8,1761.7,3.64735]
[1746030491822,1.13527,1761.7,1761.6,1.13522]
[1746030492020,2.80377,1761.7,1761.6,1.13522]
[1746030492220,1.13527,1761.6,1761.5,3.4076]
[1746030492524,1.13536,1761.5,1761.4,1.13533]
[1746030492721,5.3825,1761.6,1761.5,1.13533]
[1746030492925,3.714,1761.6,1761.5,1.13533]
[1746030493122,7.542,1761.6,1761.5,1.13533]
[1746030493327,3.714,1761.9,1761.6,2.83805]
[1746030493636,4.3756,1762.1,1762.0,1.13501]
[1746030494121,8.2036,1762.1,1762.0,1.13501]
[1746030494719,3.828,1762.1,1762.0,4.34281]
[1746030495030,3.828,1762.1,1762.0,5.16621]
[1746030495237,3.714,1762.2,1762.1,1.13495]
[1746030495427,3.714,1762.2,1762.1,2.78505]
[1746030497232,7.542,1762.2,1762.1,44.40775]
[1746030498926,3.828,1762.2,1762.1,44.40775]
[1746030499136,2.73695,1762.3,1762.2,1.13488]
[1746030499421,2.73695,1762.3,1762.2,2.75388]
[1746030500221,5.4301,1762.3,1762.2,2.75388]
[1746030500525,6.56492,1762.3,1762.2,2.75388]
[1746030501430,5.4301,1762.3,1762.2,2.75388]
[1746030501630,6.56492,1762.3,1762.2,2.75388]
[1746030502125,6.56492,1762.3,1762.2,1.13488]
[1746030503130,5.4301,1762.3,1762.2,1.13488]
[1746030503331,5.4301,1762.3,1762.2,2.84258]
[1746030504132,1.6021,1762.3,1762.2,2.84258]
[1746030504428,2.81087,1762.4,1762.3,1.13482]
[1746030504730,4.49697,1762.4,1762.3,1.13482]
[1746030505131,8.32497,1762.4,1762.3,1.13482]
[1746030506320,7.1902,1762.4,1762.3,1.13482]
[1746030507231,3.3622,1762.4,1762.3,1.13482]
[1746030508333,3.3622,1762.4,1762.3,1.99772]
[1746030508536,4.49695,1762.4,1762.3,1.99772]
[1746030509031,3.714,1762.5,1762.4,1.13475]
[1746030509433,1.13488,1762.3,1762.1,47.66782]
[1746030509735,1.13485,1762.3,1762.2,1.13482]
[1746030509938,3.4718,1762.3,1762.2,1.13482]
[1746030510235,4.60662,1762.3,1762.2,1.13482]
[1746030510437,3.4718,1762.3,1762.2,1.13482]
[1746030511124,7.2998,1762.3,1762.2,2.90262]
[1746030511330,3.828,1762.3,1762.2,2.90262]
[1746030511538,3.828,1762.3,1762.2,3.73362]
[1746030512227,1.713,1762.4,1762.2,2.90263]
[1746030512432,2.84781,1762.4,1762.3,1.13482]
[1746030513239,6.67581,1762.4,1762.3,1.13482]
[1746030513634,5.541,1762.4,1762.3,1.13482]
[1746030514433,6.67575,1762.4,1762.3,1.13482]
[1746030515235,5.541,1762.4,1762.3,1.13482]
[1746030515437,5.541,1762.4,1762.3,2.86452]
[1746030515635,6.67575,1762.4,1762.3,2.86452]
[1746030515830,6.67575,1762.4,1762.3,1.13482]
[1746030516941,5.541,1762.4,1762.3,1.13482]
[1746030517133,1.713,1762.4,1762.3,1.13482]
[1746030517538,2.84775,1762.4,1762.3,1.13482]
[1746030517739,1.713,1762.4,1762.3,1.13482]
[1746030518139,2.84775,1762.4,1762.3,1.13482]
[1746030518540,1.713,1762.4,1762.3,1.13482]
[1746030518740,2.84775,1762.4,1762.3,1.13482]
[1746030521543,1.13482,1762.3,1762.2,2.86455]
[1746030521742,3.64532,1762.3,1762.2,2.86455]
[1746030523442,2.5105,1762.3,1762.2,2.86455]
[1746030523843,1.13479,1762.4,1762.3,1.13482]
[1746030524042,1.13479,1762.4,1762.3,2.89512]
[1746030524438,2.74059,1762.4,1762.3,2.89512]
[1746030526145,2.74059,1762.4,1762.3,3.74502]
[1746030528439,2.74059,1762.4,1762.3,1.13482]
[1746030529235,6.56859,1762.4,1762.3,1.13482]
[1746030529642,6.56859,1762.4,1762.2,1.6002]
[1746030529838,5.8162,1762.3,1761.7,7.58311144]
[1746030530037,1.13514,1761.8,1761.7,10.42892144]
[1746030530238,1.13514,1761.8,1761.7,7.58311144]
[1746030530442,4.57334,1761.8,1761.7,7.58311144]
[1746030531146,4.57334,1761.8,1761.7,8.71832144]
[1746030531147,8.40134,1761.8,1761.7,8.71832144]
[1746030531343,8.40134,1761.8,1761.7,7.58311144]
[1746030531644,6.70034,1761.8,1761.7,8.71832144]
[1746030531847,6.70034,1761.8,1761.7,11.29012144]
[1746030532049,3.828,1761.8,1761.7,11.29012144]
[1746030532242,5.16947,1762.1,1762.0,1.13501]
[1746030532442,8.91047,1762.1,1762.0,1.13501]
[1746030532945,4.5754,1762.3,1761.9,1.6956]
[1746030533244,5.71022,1762.3,1762.2,1.13488]
[1746030533446,1.13492,1762.2,1762.1,1.13489]
[1746030533647,2.81732,1762.2,1762.1,1.13489]
[1746030533848,3.64402,1762.2,1762.1,1.13489]
[1746030534036,3.64402,1762.2,1762.1,2.83049]
[1746030534239,3.64402,1762.2,1762.1,1.6956]
[1746030534442,3.64402,1762.2,1762.1,1.13495]
[1746030534648,3.64402,1762.2,1762.1,2.83055]
[1746030534949,1.13492,1762.2,1762.1,2.83055]
[1746030535141,4.5754,1762.3,1762.2,1.13488]
[1746030535344,3.68738,1762.4,1762.3,1.13482]
[1746030535544,7.42838,1762.4,1762.3,1.13482]
[1746030535746,7.42838,1762.4,1762.3,3.76822]
[1746030541557,4.87578,1762.4,1762.3,3.76822]
[1746030542053,3.741,1762.4,1762.3,3.76822]
[1746030542261,4.8757,1762.6,1762.5,1.13465]
[1746030543056,1.13469,1762.5,1762.4,2.734]
[1746030543256,1.13469,1762.5,1762.3,0.874]
[1746030543257,1.13482,1762.3,1762.2,1.97108]
[1746030543955,2.4654,1762.4,1762.3,1.13482]
[1746030544258,3.60015,1762.4,1762.3,1.13482]
[1746030544659,3.60015,1762.4,1762.3,2.75922]
[1746030545563,2.4654,1762.4,1762.3,2.75922]
[1746030545762,3.60015,1762.4,1762.3,2.75922]
[1746030548663,3.60015,1762.4,1762.3,1.13482]
[1746030548957,1.13482,1762.3,1762.2,1.13483]
[1746030549163,4.87582,1762.3,1762.2,2.87013]
[1746030549365,6.55252,1762.3,1762.2,2.87013]
[1746030549553,5.4177,1762.3,1762.2,2.87013]
[1746030549956,6.55252,1762.3,1762.2,2.87013]
[1746030551566,5.4177,1762.3,1762.2,1.13483]
[1746030551761,3.741,1762.3,1762.2,2.86293]
[1746030551971,3.741,1762.3,1762.2,6.07073]
[1746030553370,5.71489,1762.5,1762.4,1.13475]
[1746030553769,5.71489,1762.5,1762.4,2.81445]
[1746030553973,5.71489,1762.5,1762.4,1.13475]
[1746030554177,4.5802,1762.5,1762.2,3.2078]
[1746030554374,1.13482,1762.3,1762.2,4.34262]
[1746030554675,1.13482,1762.3,1762.2,4.34263]
[1746030554871,1.97412,1762.3,1762.2,4.34263]
[1746030556476,0.8393,1762.3,1762.2,4.34263]
[1746030557378,1.97412,1762.3,1762.2,6.00193]
[1746030557570,2.5656,1762.3,1762.2,6.00193]
[1746030558077,7.41709,1762.5,1762.4,1.13475]
[1746030558078,5.71493,1762.5,1762.4,1.13475]
[1746030558273,4.5802,1762.5,1762.4,1.13475]
[1746030558776,3.741,1762.6,1762.4,8.53294]
[1746030558977,3.741,1762.6,1762.5,1.13469]
[1746030559179,3.741,1762.6,1762.5,2.79399]
[1746030566282,4.87563,1762.6,1762.5,2.79399]
[1746030566482,3.741,1762.6,1762.5,2.79399]
[1746030569084,11.36425,1762.9,1762.8,1.1345]
[1746030569475,1.13455,1762.8,1762.7,1.1345]
[1746030569670,2.75755,1762.8,1762.7,1.1345]
[1746030570070,1.13456,1762.7,1762.6,2.78079]
[1746030570276,2.75756,1762.7,1762.6,1.13459]
[1746030571776,1.623,1762.7,1762.6,1.13459]
[1746030572182,9.72067,1762.9,1762.8,1.1345]
[1746030573381,13.54867,1762.9,1762.8,1.1345]
[1746030574778,15.26507,1762.9,1762.8,1.1345]
[1746030575682,1.1345,1762.8,1762.7,3.72571]
[1746030575882,2.8509,1762.8,1762.7,3.72571]
[1746030576382,6.6789,1762.8,1762.7,1.13451]
[1746030578687,1.13467,1762.6,1762.5,1.13463]
[1746030579083,7.51007,1762.6,1762.5,1.13463]
[1746030579990,7.51007,1762.6,1762.5,2.87503]
[1746030580188,2.5474,1762.6,1762.5,2.87503]
[1746030581586,3.68203,1762.6,1762.5,2.87503]
[1746030582085,6.3754,1762.6,1762.5,2.87503]
[1746030582292,7.51003,1762.6,1762.5,2.87503]
[1746030583896,5.5137,1762.6,1762.5,2.87503]
[1746030584098,3.828,1762.6,1762.5,2.87503]
[1746030584395,1.95761,1762.7,1762.6,1.13463]
[1746030584696,1.95761,1762.7,1762.6,3.63733]
[1746030585094,5.78561,1762.7,1762.6,3.63733]
[1746030585396,7.38931,1762.7,1762.6,3.63733]
[1746030586295,7.38931,1762.7,1762.6,2.75963]
[1746030586794,6.2547,1762.7,1762.6,2.75963]
[1746030586989,3.828,1762.7,1762.6,2.75963]
[1746030587194,10.57729,1762.9,1762.7,1.1345]
[1746030587195,13.14339,1762.9,1762.7,1.1345]
[1746030587397,1.7254,1762.8,1762.7,2.764]
[1746030587996,2.85996,1762.8,1762.7,2.764]
[1746030588292,6.68796,1762.8,1762.7,2.764]
[1746030588492,5.5534,1762.8,1762.7,2.764]
[1746030589199,1.7254,1762.8,1762.7,2.764]
[1746030590094,2.8599,1762.8,1762.7,2.764]
[1746030590397,2.8599,1762.8,1762.7,1.1345]
[1746030591097,6.6879,1762.8,1762.7,1.1345]
[1746030593004,1.13456,1762.7,1762.6,1.13457]
[1746030593202,2.83026,1762.7,1762.6,1.13457]
[1746030593604,4.96255,1762.8,1762.7,1.13456]
[1746030595297,6.65825,1762.8,1762.7,1.13456]
[1746030601105,2.83025,1762.8,1762.7,1.13456]
[1746030601604,1.13456,1762.7,1762.6,2.86859]
[1746030601799,1.676,1762.7,1762.6,2.86859]
[1746030602005,1.13452,1762.8,1762.7,1.1345]
[1746030602204,1.13452,1762.8,1762.7,2.7972]
[1746030602407,2.85512,1762.8,1762.7,2.7972]
[1746030602603,2.85512,1762.8,1762.7,1.1345]
[1746030603095,6.68312,1762.8,1762.7,1.1345]
[1746030604407,1.13463,1762.6,1762.5,2.79733]
[1746030604615,1.13463,1762.6,1762.5,1.13469]
[1746030604909,1.13469,1762.5,1762.4,1.9638]
[1746030605100,1.95149,1762.5,1762.4,1.9638]
[1746030605301,3.69999,1762.5,1762.4,1.9638]
[1746030605701,3.69999,1762.5,1762.4,3.7305]
[1746030607003,1.13475,1762.4,1762.3,1.1348]
[1746030607207,2.88325,1762.4,1762.3,1.1348]
[1746030607409,1.7485,1762.4,1762.3,1.1348]
[1746030607811,5.77954,1762.5,1762.4,1.13475]
[1746030608011,4.6448,1762.5,1762.4,1.13475]
[1746030608313,4.84361,1762.7,1762.6,1.13463]
[1746030608810,3.709,1762.7,1762.6,3.59603]
[1746030609712,1.13446,1762.9,1762.6,5.6692]
[1746030609908,11.23271057,1763.2,1763.1,1.1343]
[1746030610610,11.23271057,1763.2,1763.1,2.7597]
[1746030610811,12.36695057,1763.2,1763.1,1.1343]
[1746030611014,14.87635057,1763.2,1763.1,1.1343]
[1746030611415,1.13437,1763.0,1762.9,2.74659]
[1746030611715,1.13443,1762.9,1762.8,4.0071]
[1746030612014,2.78183,1762.9,1762.8,5.1416]
[1746030612416,3.63013,1762.9,1762.8,5.1416]
[1746030612610,3.63013,1762.9,1762.8,3.2078]
[1746030613014,1.1345,1762.8,1762.7,2.74671]
[1746030613215,1.13456,1762.7,1762.6,40.8]
[1746030613414,1.13463,1762.6,1762.5,0.9447]
[1746030613612,4.44163,1762.6,1762.5,0.9447]
[1746030613809,4.44163,1762.6,1762.2,1.13487]
[1746030613810,1.13482,1762.3,1762.2,1.13487]
[1746030614017,1.13482,1762.3,1762.2,2.74707]
[1746030614211,3.709,1762.4,1762.2,1.6122]
[1746030614513,3.709,1762.4,1762.3,38.44306842]
[1746030616817,4.84375,1762.4,1762.3,38.44306842]
[1746030617920,4.84375,1762.4,1762.3,37.30824842]
[1746030618217,8.67175,1762.4,1762.3,37.30824842]
[1746030619321,4.84375,1762.4,1762.3,37.30824842]
[1746030620114,4.84375,1762.4,1762.2,2.76475]
[1746030620115,1.13482,1762.3,1762.2,2.76475]
[1746030620313,3.56882,1762.3,1762.2,2.76475]
[1746030620718,3.56882,1762.3,1762.2,1.6299]
[1746030621421,3.56882,1762.3,1762.2,2.76478]
[1746030622320,3.56882,1762.3,1762.2,1.6299]
[1746030623120,1.13488,1762.2,1762.1,1.9063]
[1746030623418,1.13508,1761.9,1761.8,7.57943308]
[1746030623626,4.84308,1761.9,1761.8,7.57943308]
[1746030624122,10.38358,1761.9,1761.8,7.57943308]
[1746030624422,1.13514,1761.8,1761.7,3.04387]
[1746030624623,2.84764,1761.8,1761.7,4.74797]
[1746030624822,3.71614,1761.8,1761.7,2.83927]
[1746030626624,3.71614,1761.8,1761.7,1.7041]
[1746030626829,3.71614,1761.8,1761.7,2.83931]
[1746030627030,3.71614,1761.8,1761.7,1.7041]
[1746030627221,1.13521,1761.7,1761.6,9.48823308]
[1746030627423,3.61511,1761.7,1761.6,9.48823308]
[1746030627623,3.61511,1761.7,1761.6,8.71470308]
[1746030628030,3.61511,1761.7,1761.6,1.13527]
[1746030629136,3.61511,1761.7,1761.6,2.89387]
[1746030629637,1.6135,1761.7,1761.6,2.89387]
[1746030629830,3.708,1761.9,1761.8,1.13514]
[1746030630226,6.81035,1762.0,1761.9,1.13508]
[1746030630430,3.709,1762.0,1761.9,1.13508]
[1746030630630,0.8358,1762.2,1762.1,1.13495]
[1746030630831,3.709,1762.2,1762.1,1.13495]
[1746030631036,3.709,1762.4,1762.3,1.13482]
[1746030631435,3.709,1762.4,1762.3,3.67762]
[1746030631635,4.84375,1762.4,1762.3,3.67762]
[1746030632247,6.45615,1762.4,1762.3,3.67762]
[1746030632543,6.45615,1762.4,1762.3,2.83392]
[1746030632943,5.3214,1762.4,1762.3,2.83392]
[1746030633242,6.45615,1762.4,1762.3,2.83392]
[1746030634137,6.45615,1762.4,1762.3,1.6991]
[1746030634343,1.13482,1762.3,1762.2,3.2078]
[1746030634641,1.13495,1762.1,1762.0,3.63597]
[1746030634837,2.00853,1762.2,1762.1,1.13495]
[1746030635340,3.70123,1762.2,1762.1,1.13495]
[1746030635544,2.5663,1762.2,1762.1,1.13495]
[1746030635842,1.13484,1762.3,1762.2,1.13482]
[1746030636038,3.70114,1762.3,1762.2,1.13482]
[1746030638045,1.13488,1762.2,1762.1,2.8184]
[1746030638531,1.6142,1762.2,1762.1,2.8184]
[1746030638736,4.84708899,1762.4,1762.3,1.13482]
[1746030638938,1.13485,1762.3,1762.2,2.81933]
[1746030639139,2.74905,1762.3,1762.2,2.81933]
[1746030640551,1.6142,1762.3,1762.2,2.81933]
[1746030640741,2.74902,1762.3,1762.2,2.81933]
[1746030641047,1.6142,1762.3,1762.2,2.81933]
[1746030641249,2.74902,1762.3,1762.2,2.81933]
[1746030642842,2.74902,1762.3,1762.2,1.13483]
[1746030643049,1.13495,1762.1,1762.0,3.68226]
[1746030643547,4.84395,1762.1,1762.0,3.68226]
[1746030643743,5.70775,1762.1,1762.0,3.68226]
[1746030644046,3.709,1762.1,1762.0,3.68226]
[1746030645849,0.00328899,1762.4,1762.1,2.83722]
[1746030646050,0.00328899,1762.4,1762.3,1.13482]
[1746030646453,0.00328899,1762.4,1762.3,4.47592]
[1746030651851,8.99e-06,1762.4,1762.3,9.47592]
[1746030652748,8.99e-06,1762.4,1762.3,4.47592]
[1746030653356,8.99e-06,1762.4,1762.3,9.47592]
[1746030653956,8.99e-06,1762.4,1762.3,50.27592]
[1746030654255,8.99e-06,1762.4,1762.3,45.27592]
[1746030656663,8.99e-06,1762.4,1762.3,4.47592]
[1746030662260,1.13475899,1762.4,1762.3,1.13482]
[1746030662660,3.58375899,1762.4,1762.3,1.13482]
[1746030663860,1.13482,1762.3,1762.2,2.759]
[1746030664056,1.13514,1761.8,1761.6,14.57694963]
[1746030664257,4.84214,1761.8,1761.6,15.71219963]
[1746030664564,9.84214,1761.8,1761.7,8.71464308]
[1746030664861,11.46624,1761.8,1761.7,7.57943308]
[1746030665163,15.29424,1761.8,1761.7,7.57943308]
[1746030665661,15.29424,1761.8,1761.7,8.71464308]
[1746030665865,15.29424,1761.8,1761.7,7.57943308]
[1746030666469,15.29424,1761.8,1761.7,8.71464308]
[1746030667063,15.29424,1761.8,1761.7,1.13521]
[1746030667761,10.29424,1761.8,1761.7,1.13521]
[1746030667962,9.1591,1761.8,1761.7,1.13521]
[1746030668264,5.3311,1761.8,1761.7,1.13521]
[1746030668461,3.4434,1762.0,1761.9,1.13508]
[1746030670064,3.708,1762.1,1762.0,1.13501]
[1746030670558,1.6084,1762.2,1762.1,1.13495]
[1746030670760,5.4415,1762.3,1762.2,1.13488]
[1746030671266,7.0499,1762.3,1762.2,1.13488]
[1746030672065,8.18472,1762.3,1762.2,1.13488]
[1746030672253,7.0499,1762.3,1762.2,1.13488]
[1746030673261,8.99e-06,1762.4,1762.3,1.13482]
[1746030673465,8.99e-06,1762.4,1762.3,4.34262]
[1746030673768,8.99e-06,1762.4,1762.3,5.97382]
[1746030673969,8.99e-06,1762.4,1762.3,10.97382]
[1746030674661,8.99e-06,1762.4,1762.3,5.97382]
[1746030676171,8.99e-06,1762.4,1762.3,10.97382]
[1746030678268,8.99e-06,1762.4,1762.3,51.77382]
[1746030679170,3.708,1762.9,1762.8,1.1345]
[1746030679369,3.708,1762.9,1762.8,4.3423]
[1746030679570,3.3261,1763.0,1762.9,1.13443]
[1746030679871,3.3261,1763.0,1762.9,2.77223]
[1746030680672,4.46047,1763.0,1762.9,1.13443]
[1746030680873,9.46047,1763.0,1762.9,1.13443]
[1746030681271,3.3261,1763.0,1762.9,1.13443]
[1746030681775,4.46047,1763.0,1762.9,1.13443]
[1746030682274,3.3261,1763.0,1762.9,1.13443]
[1746030682476,12.66827,1763.0,1762.9,1.13443]
[1746030682672,3.3261,1763.0,1762.9,1.13443]
[1746030682868,1.13456,1762.7,1762.6,5.83]
[1746030683172,4.84156,1762.7,1762.6,5.83]
[1746030683369,9.84156,1762.7,1762.6,5.83]
[1746030683568,11.61076,1762.7,1762.6,5.83]
[1746030683776,11.61076,1762.7,1762.6,6.96463]
[1746030683968,10.4762,1762.7,1762.6,6.96463]
[1746030684275,14.3042,1762.7,1762.6,6.96463]
[1746030684471,9.3042,1762.7,1762.6,1.13463]
[1746030685170,5.4762,1762.7,1762.6,1.13463]
[1746030685379,10.4762,1762.7,1762.6,1.13463]
[1746030685673,11.61076,1762.7,1762.6,1.13463]
[1746030686177,9.3042,1762.7,1762.6,1.13463]
[1746030686667,10.43876,1762.7,1762.6,1.13463]
[1746030687274,9.3042,1762.7,1762.6,1.13463]
[1746030687471,10.43876,1762.7,1762.6,1.13463]
[1746030688877,9.3042,1762.7,1762.6,1.13463]
[1746030689478,10.43876,1762.7,1762.6,1.13463]
[1746030692179,6.61076,1762.7,1762.6,1.13463]
[1746030693080,3.707,1762.7,1762.6,1.13463]
[1746030693872,3.707,1762.7,1762.6,2.81353]
[1746030694381,3.707,1762.7,1762.6,1.13463]
[1746030694382,4.84156,1762.7,1762.6,1.13463]
[1746030694573,6.56026,1762.7,1762.6,1.13463]
[1746030695281,1.13475,1762.4,1762.3,4.34257]
[1746030695578,1.13488,1762.2,1762.1,0.4795]
[1746030695778,4.34268,1762.2,1762.1,0.4795]
[1746030695980,1.13495,1762.1,1762.0,1.13498]
[1746030696182,7.1156,1762.1,1762.0,1.13498]
[1746030696382,3.705,1762.1,1762.0,1.13498]
[1746030696584,3.705,1762.1,1762.0,2.76808]
[1746030696781,3.705,1762.1,1762.0,4.38438]
[1746030697778,3.706,1762.4,1762.3,1.13482]
[1746030698981,3.706,1762.5,1762.4,1.13475]
[1746030699779,6.56239,1762.5,1762.4,1.13475]
[1746030700479,5.4277,1762.5,1762.4,1.13475]
[1746030701287,5.4277,1762.5,1762.2,1.13484]
[1746030701487,1.13482,1762.3,1762.2,1.13484]
[1746030702090,3.69772,1762.3,1762.2,1.13484]
[1746030702887,2.5629,1762.3,1762.2,1.13484]
[1746030703489,2.5629,1762.3,1762.2,2.86304]
[1746030704286,0.8469,1762.4,1762.3,1.13482]
[1746030704488,3.706,1762.5,1762.4,1.13475]
[1746030704686,4.84069,1762.5,1762.4,1.13475]
[1746030704889,6.53719,1762.5,1762.4,1.13475]
[1746030705189,10.36519,1762.5,1762.4,1.13475]
[1746030705684,1.13477,1762.4,1762.3,1.13476]
[1746030705884,2.76717,1762.4,1762.3,1.13476]
[1746030706489,1.6324,1762.4,1762.3,1.13476]
[1746030707189,2.76715,1762.4,1762.3,1.13476]
[1746030707687,1.6324,1762.4,1762.3,1.13476]
[1746030709892,1.6324,1762.4,1762.3,1.97626]
[1746030710084,3.706,1762.5,1762.4,1.13475]
[1746030710283,4.84069,1762.5,1762.4,3.67825]
[1746030710478,4.84069,1762.5,1762.3,1.3208]
[1746030710682,2.86295,1762.4,1762.3,1.61407]
[1746030710885,2.86295,1762.4,1762.3,0.4793]
[1746030711189,11.69095,1762.4,1762.3,0.4793]
[1746030711592,1.13495,1762.1,1762.0,1.13495]
[1746030711892,4.84095,1762.1,1762.0,1.13495]
[1746030712082,8.66895,1762.1,1762.0,1.13495]
[1746030712594,10.26575,1762.1,1762.0,1.13495]
[1746030713091,6.43775,1762.1,1762.0,1.13495]
[1746030713493,5.3028,1762.1,1762.0,2.88325]
[1746030713692,6.43775,1762.1,1762.0,2.88325]
[1746030714293,10.26575,1762.1,1762.0,2.88325]
[1746030714892,10.26575,1762.1,1762.0,1.13495]
[1746030715191,6.43775,1762.1,1762.0,1.13495]
[1746030717289,5.3028,1762.1,1762.0,1.13495]
[1746030717495,6.43775,1762.1,1762.0,2.80245]